[Event "Reykjavik Open 2025"]
[Site "Reykjavik"]
[Date "2025.04.10"]
[Round "2.11"]
[White "Adhiban, B.."]
[Black "Golis, Wiktor"]
[Result "1-0"]
[Annotator "TA"]
[ECO "D55"]
[WhiteElo "2554"]
[BlackElo "2293"]
[PlyCount "51"]
[EventDate "2025.04.09"]
[EventType "swiss"]
[EventCountry "ISL"]
[SourceTitle "playchess.com"]
[Source "ChessBase"]
[SourceQuality "1"]
[TimeControl "40/5400+30:1800+30"]

{[%evp 20,51,37,40,46,55,53,57,71,50,126,106,118,124,156,170,158,166,233,247,259,266,256,267,253,259,338,331,394,393,384,399,400,402]} 1. c4 {[%emt 0:00:04]} e6 {[%emt 0:00:40]} 2. Nc3 {[%emt 0:00:03]} d5 {[%emt 0:00:10]} 3. d4 {[%emt 0:00:08]} Nf6 {[%emt 0:00:17]} 4. Bg5 {[%emt 0:00:28]} Be7 {[%emt 0:04:17]} 5. e3 {[%emt 0:00:56]} O-O {[%emt 0:00:26]} 6. Nf3 {[%emt 0:00:20]} Nbd7 {[%emt 0:07:18]} 7. Qc2 {[%emt 0:00:53]} b6 {[%emt 0:02:54]} 8. cxd5 {[%emt 0:04:41]} exd5 {[%emt 0:02:21]} 9. Bd3 {[%emt 0:01:54]} Bb7 {[%emt 0:01:09]} 10. O-O {[%emt 0:00:05]} h6 {[%emt 0:05:13]} 11. Bf4 {[%emt 0:03:16]} c5 {[%emt 0:04:23][%cal Bc7c5,Bc5c4][%mdl 32] D55: Queen's Gambit Declined: 4 Bg5 Be7: Lines without ...h6 and 6...h6 7 Bxf6.} 12. Rfd1 {[%emt 0:07:44]} c4 {[%emt 0:06:39]} 13. Bf5 {[%emt 0:00:30]} a6 {[%emt 0:08:12] [#] White is slightly better.} 14. a4 $1 {[%emt 0:25:56]} Ne8 $146 {[%emt 0:11:32]} (14... Bb4 $14) (14... Re8 15. Ne5 Bb4 16. Nxd7 Nxd7 17. e4 Bxc3 18. bxc3 dxe4 19. Rab1 Nf6 20. Be5 e3 21. fxe3 {0-1 Orzech,D (2313)-Tarasova,V (2226) Titled Tuesday intern op 29th Nov Early blitz 2022 (7)}) 15. b3 $16 {[%emt 0:06:17]} Bd6 {[%emt 0:13:00]} 16. Ne5 {[%emt 0:04:10]} Ndf6 {[%emt 0:01:10]} 17. bxc4 {[%emt 0:02:22] White has more active pieces.} dxc4 {[%emt 0:00:05]} 18. Rab1 {[%emt 0:01:42]} Nh5 {[%emt 0:04:01]} (18... Rb8 {was necessary.} 19. Bg3 (19. Nxc4 Bxf4 20. exf4 Nd6 $16) 19... Qc7) 19. Bg3 $18 {[%emt 0:02:34]} ({Much less strong is} 19. Nxc4 $6 Bxf4 20. exf4 (20. Rxb6 Qc7 $16) 20... Nxf4) 19... Nxg3 {[%emt 0:07:22]} 20. hxg3 {[%emt 0:00:02]} ({Less strong is} 20. fxg3 g6 $16) 20... Bc7 {[%emt 0:13:08]} 21. Nd7 {[%emt 0:05:31]} Nd6 {[%emt 0:00:08]} 22. Nxf8 {[%emt 0:00:14]} Kxf8 {[%emt 0:00:11]} 23. Bg4 {[%emt 0:00:20]} Qg5 {[%emt 0:01:08]} 24. Bf3 {[%emt 0:01:39] White is winning.} Bxf3 {[%emt 0:00:52]} 25. gxf3 {[%emt 0:00:02][%cal Bg2f3,Bf3f4][%mdl 32]} b5 {[%emt 0:01:30]} 26. f4 {[%emt 0:03:01] Black did not feel at home in the position after the opening.   Weighted Error Value: White=0.00 (flawless) /Black=0.29 (precise)   Mistake:       	---       	Black=2      Inaccurate:     	---       	Black=1      OK:         	White=11    	Black=3      Strong:       	White=1     	---} 1-0

[Event "Reykjavik Open 2025"]
[Site "Reykjavik"]
[Date "2025.04.10"]
[Round "2.12"]
[White "Amar, Elham"]
[Black "Schouten, Mathias Lind"]
[Result "1-0"]
[Annotator "TA"]
[ECO "B40"]
[WhiteElo "2546"]
[BlackElo "2279"]
[PlyCount "93"]
[EventDate "2025.04.09"]
[EventType "swiss"]
[EventCountry "ISL"]
[SourceTitle "playchess.com"]
[Source "ChessBase"]
[SourceQuality "1"]
[TimeControl "40/5400+30:1800+30"]

{[%evp 9,93,0,0,4,8,0,6,0,0,-10,31,-25,-12,-18,10,8,25,0,0,0,0,0,0,0,45,43,84,94,84,93,95,84,95,51,91,68,68,0,63,60,58,70,68,29,41,0,69,50,178,6,18,0,237,0,29,0,12,0,7,0,113,86,110,112,87,84,87,84,335,373,373,378,369,359,310,333,322,326,379,371,631,626,788,786,4810,585]} 1. e4 {[%emt 0:00:05]} c5 {[%emt 0:00:27]} 2. Nf3 {[%emt 0:00:11]} e6 {[%emt 0:00:16]} 3. c3 {[%emt 0:00:45]} d5 {[%emt 0:00:07]} 4. e5 {[%emt 0:00:07]} d4 {[%emt 0:00:09]} 5. Na3 {[%emt 0:00:55]} Nc6 {[%emt 0:00:13]} 6. Bd3 {[%emt 0:00:32] B40: Sicilian: 2...e6, Unusual lines.} f5 {[%emt 0:00:08]} 7. exf6 {[%emt 0:03:03]} Nxf6 {[%emt 0:00:07]} 8. O-O {[%emt 0:02:23] The position is equal.} Bd6 {[%emt 0:00:16]} 9. Bb5 $146 {[%emt 0:04:34]} (9. Nc4 O-O 10. Nxd6 Qxd6 11. b4 dxc3 12. dxc3 Rd8 13. Be2 Qxd1 14. Bxd1 cxb4 15. cxb4 Nxb4 {½-½ Ligon,S (2278)-Perevozchikov,V (2279) FICGS rapid M 000135 email 2022 (1)}) 9... O-O {[%emt 0:01:31]} 10. Bxc6 {[%emt 0:09:58]} (10. Nc4 $14) 10... bxc6 $11 {[%emt 0:00:05]} 11. d3 {[%emt 0:00:19]} Nd5 {[%emt 0:10:01]} 12. Bd2 {[%emt 0:13:26]} Bf4 {[%emt 0:29:04]} 13. cxd4 {[%emt 0:08:05]} cxd4 {[%emt 0:00:06]} 14. Nc4 {[%emt 0:01:27]} c5 {[%emt 0:10:22]} 15. g3 {[%emt 0:10:55]} Bb7 {[%emt 0:15:45]} 16. Qe2 {[%emt 0:00:05]} (16. gxf4 $2 Nxf4 17. Bxf4 Rxf4 $19) 16... Bxd2 {[%emt 0:01:43]} (16... Qf6 $5) 17. Nfxd2 {[%emt 0:01:31] A sharp opening} Nb4 {[%emt 0:03:20][%cal Bd5b4,Bb4c6,Bc6b8,Bb8a6][%mdl 32]} 18. a3 {[%emt 0:03:48]} Qd5 {[%emt 0:00:08]} 19. f3 $1 {[%emt 0:00:06]} Nc6 {[%emt 0:00:34]} 20. Rac1 {[%emt 0:01:26]} Nb8 {[%emt 0:10:30]} 21. Ne5 {[%emt 0:12:56]} Na6 {[%emt 0:04:56]} 22. Ndc4 {[%emt 0:02:12]} Rae8 {[%emt 0:01:31]} 23. Nd2 {[%emt 0:04:21]} ({White should play} 23. Rfe1 $14) 23... Re7 {[%emt 0:00:16]} (23... Ra8 $1 $11) 24. Nec4 {[%emt 0:00:26]} Nb8 {[%emt 0:01:08]} 25. Ne4 {[%emt 0:01:05]} Nd7 {[%emt 0:00:23]} 26. Rc2 {[%emt 0:01:58]} Ba6 {[%emt 0:00:40]} 27. f4 {[%emt 0:03:51]} Rb8 {[%emt 0:00:33]} ({Black should try} 27... e5 $1 $11) 28. Rfc1 {[%emt 0:03:14]} Rb3 {[%emt 0:03:49]} (28... h6 $14) 29. Ned2 $2 {[%emt 0:03:25] A dynamic duo of knights.} (29. Ne5 $1 $18 {[%cal Re5d7]}) 29... Rb8 $1 {[%emt 0:00:49]} 30. Ne4 $2 {[%emt 0:02:42]} (30. Ne5 $11) 30... Rb3 $18 {[%emt 0:00:05] [#]} 31. Ned2 $2 {[%emt 0:01:37]} (31. Ne5 $1 $18 {[%cal Re5d7]}) 31... Rb8 $11 {[%emt 0:00:04]} 32. Qe4 {[%emt 0:00:15]} Bb7 {[%emt 0:04:33]} 33. Na5 {[%emt 0:02:51]} Ba8 {[%emt 0:00:29]} 34. Qxd5 {[%emt 0:00:26]} exd5 {[%emt 0:00:22]} (34... Bxd5 $11 35. Ndc4 h5 (35... e5 36. Nxe5 Nxe5 37. fxe5 $17)) 35. Ndb3 $36 {[%emt 0:00:56][%mdl 2048] White has strong initiative.} Kf7 {[%emt 0:02:02]} 36. Nxc5 {[%emt 0:00:23]} Nxc5 {[%emt 0:00:04]} 37. Rxc5 {[%emt 0:00:03]} Rxb2 {[%emt 0:00:05] [#]} 38. Rc7 $1 {[%emt 0:00:30]} Rd2 $2 {[%emt 0:02:00][%mdl 8192]} (38... Rb6 $16) 39. Rxe7+ $18 {[%emt 0:01:09]} Kxe7 {[%emt 0:00:04]} 40. Rc8 {[%emt 0:00:25]} Rxd3 {[%emt 0:00:38]} 41. Rxa8 {[%emt 0:30:03][%mdl 4096] Endgame KRN-KR} Ke6 {[%emt 0:18:04]} 42. Nc6 {[%emt 0:00:00]} Kd6 {[%emt 0:05:19]} 43. Nxa7 {[%emt 0:00:00]} Kc5 {[%emt 0:03:37]} 44. a4 {[%emt 0:00:00]} Rb3 $2 {[%emt 0:00:03]} (44... Rd1+ 45. Kf2 Rd2+ 46. Kf3 Rxh2) 45. Rc8+ {[%emt 0:00:00] White is clearly winning.} Kb4 {[%emt 0:00:14]} 46. Nc6+ {[%emt 0:00:00]} Kxa4 {[%emt 0:00:02]} 47. Ra8+ {[%emt 0:00:00] Weighted Error Value: White=0.21 (precise) /Black=0.49  Loses game:     	---       	Black=1      Missed win:     	White=2     	---        Mistake:       	White=3     	Black=5      Inaccurate:     	White=4     	Black=5      OK:         	White=11    	Black=13     Best:        	White=2     	Black=2      Strong:       	White=2     	Black=1} 1-0

[Event "Reykjavik Open 2025"]
[Site "Reykjavik"]
[Date "2025.04.10"]
[Round "2.13"]
[White "Stefansson, Vignir Vatnar"]
[Black "Nayak Rajesh"]
[Result "1-0"]
[Annotator "TA"]
[ECO "E04"]
[WhiteElo "2536"]
[BlackElo "2277"]
[PlyCount "89"]
[EventDate "2025.04.09"]
[EventType "swiss"]
[EventCountry "ISL"]
[SourceTitle "playchess.com"]
[Source "ChessBase"]
[SourceQuality "1"]
[TimeControl "40/5400+30:1800+30"]

{[%evp 12,89,43,35,30,0,11,0,38,37,42,42,63,63,63,68,63,68,69,58,58,42,28,18,208,202,316,289,274,212,291,304,327,270,328,322,320,333,344,307,308,281,333,332,307,314,292,97,143,57,57,57,52,52,52,54,54,54,54,54,54,54,94,114,1160,1029,2214,2133,1960,1709,2563,2473,2785,2443,29972,29971,29980,29980,29980,29976]} 1. d4 {[%emt 0:04:31]} Nf6 {[%emt 0:00:44]} 2. c4 {[%emt 0:00:20]} e6 {[%emt 0:00:09]} 3. Nf3 {[%emt 0:02:49]} d5 {[%emt 0:00:11]} 4. g3 {[%emt 0:00:05]} dxc4 {[%emt 0:00:45]} 5. Bg2 {[%emt 0:00:06]} Nbd7 {[%emt 0:00:28]} 6. O-O {[%emt 0:05:57]} c6 {[%emt 0:02:15]} 7. a4 {[%emt 0:02:13]} b6 {[%emt 0:03:48] E04: Open Catalan: 5 Nf3.} 8. Nc3 {[%emt 0:06:37]} Nd5 {[%emt 0:09:01]} 9. e4 {[%emt 0:05:47]} Nxc3 $146 {[%emt 0:02:01] The position is equal.} (9... Nb4 10. d5 Bc5 11. Qe2 e5 12. dxc6 Nxc6 13. Qxc4 h6 14. a5 Nxa5 15. Qa4 O-O {1-0 Van Foreest,J (2664)-Albornoz Cabrera,C (2610) FRA-chT Top 16 GpA 2024 (7.10)}) 10. bxc3 {[%emt 0:00:27]} Be7 {[%emt 0:05:29]} 11. e5 {[%emt 0:07:31][%mdl 1024] White has compensation.} Ba6 {[%emt 0:02:30]} 12. h4 {[%emt 0:07:07]} Rc8 {[%emt 0:05:27]} 13. Ng5 {[%emt 0:00:27] White sacrificed a pawn} h6 {[%emt 0:15:09]} 14. Ne4 {[%emt 0:01:36]} c5 {[%emt 0:01:42]} 15. Qg4 {[%emt 0:02:39] White has more active pieces. The black rooks are passive.} Kf8 {[%emt 0:01:46]} 16. Be3 $36 {[%emt 0:03:01][%mdl 2048] White has good play.} cxd4 {[%emt 0:02:49]} 17. Bxd4 {[%emt 0:00:13]} Nc5 $2 {[%emt 0:02:16]} (17... Bb7 $11 {and Black stays safe.}) 18. Bxc5 $1 $18 {[%emt 0:02:43]} Bxc5 {[%emt 0:00:20]} (18... bxc5 $142 19. Rfd1 Qc7) 19. Rfd1 {[%emt 0:01:39]} Qe7 {[%emt 0:06:38]} 20. Rd2 {[%emt 0:03:45]} Rd8 {[%emt 0:02:14]} 21. Rxd8+ {[%emt 0:03:14]} Qxd8 {[%emt 0:00:02]} 22. Rd1 {[%emt 0:00:30][%cal Ba1d1,Bd1d6,Bd6c6][%mdl 32]} Qe7 {[%emt 0:06:24]} 23. Nxc5 {[%emt 0:00:12]} bxc5 {[%emt 0:00:09]} 24. Qe4 {[%emt 0:07:00] Intending Qa8+ and mate.} Qc7 {[%emt 0:03:57]} 25. Rd6 {[%emt 0:06:03]} Bc8 {[%emt 0:00:20]} 26. Rc6 {[%emt 0:00:31]} (26. Qxc4 g5 27. Rc6 Qd7 28. Qxc5+ Kg7) 26... Qd8 {[%emt 0:01:19]} 27. Qxc4 {[%emt 0:00:18]} (27. Rxc5 g5 28. Rxc4 (28. Qxc4 Kg7 $18) 28... Kg7) 27... g5 {[%emt 0:01:27]} 28. Qxc5+ {[%emt 0:01:53]} Kg7 {[%emt 0:00:07]} 29. Qd6 $2 {[%emt 0:03:03]} (29. Qxa7 gxh4 30. Rd6 Qg5 $18) (29. Rd6 $18 {is the precise move to win.} Qe7 30. hxg5) 29... gxh4 {[%emt 0:06:49] [#]} (29... Bb7 $142 30. Rc7 Bxg2 31. Kxg2 Qa8+ 32. Qc6 Qxc6+ 33. Rxc6 gxh4) 30. Qxd8 {[%emt 0:00:11]} (30. Rc4 $1 $16 {[%cal Rc4g4] Rg4+ is the strong threat.} Qxd6 31. exd6) 30... Rxd8 $14 {[%emt 0:00:06]} 31. gxh4 $16 {[%emt 0:00:08][%mdl 4096] Endgame KRB-KRB. White is a pawn up.} Rd1+ {[%emt 0:01:53]} 32. Kh2 {[%emt 0:03:01]} Bb7 {[%emt 0:00:25]} 33. Rc7 {[%emt 0:04:41]} Bxg2 {[%emt 0:00:12]} 34. Kxg2 $14 {[%emt 0:00:03] KR-KR. White is a pawn up.} Rd5 {[%emt 0:01:30]} 35. Rxa7 {[%emt 0:03:44]} Rxe5 {[%emt 0:00:35]} 36. Rc7 {[%emt 0:00:22]} Re4 {[%emt 0:02:02] [#]} 37. c4 $1 {[%emt 0:00:28][%cal Bc3c4,Bc4c5,Bc5c6][%mdl 32]} Rxh4 $2 {[%emt 0:00:05][%mdl 8192]} (37... Re2 $16) 38. a5 $18 {[%emt 0:00:24][%cal Ba4a5,Ba5a6,Ba6a7][%mdl 32]} Kf6 {[%emt 0:05:44]} 39. a6 {[%emt 0:01:45]} Rg4+ {[%emt 0:00:24][%cal Bh4g4,Bg4g1,Bg1a1][%mdl 32]} 40. Kh3 {[%emt 0:01:08]} Rg1 {[%emt 0:03:02]} 41. a7 {[%emt 0:30:12]} Ra1 {[%emt 0:30:06]} 42. c5 {[%emt 0:00:14]} Ke5 {[%emt 0:02:15]} 43. Rd7 {[%emt 0:00:16] White mates.} (43. Rxf7 Kd5 44. Re7 (44. Rc7 e5 $18) 44... Kxc5 $16) 43... f5 {[%emt 0:02:28]} 44. c6 {[%emt 0:00:19]} Kf4 {[%emt 0:00:09]} 45. Kg2 {[%emt 0:00:35] Weighted Error Value: White=0.13 (very precise) /Black=0.91  Loses game:     	---       	Black=2      Missed win:     	White=1     	---        Mistake:       	White=1     	Black=2      Inaccurate:     	White=1     	Black=4      OK:         	White=17    	Black=9      Best:        	White=2     	Black=4      Strong:       	White=2     	---} 1-0

[Event "Reykjavik Open 2025"]
[Site "Reykjavik"]
[Date "2025.04.10"]
[Round "2.14"]
[White "Ronka, Erik"]
[Black "Kadric, Denis"]
[Result "1/2-1/2"]
[Annotator "TA"]
[ECO "B07"]
[WhiteElo "2295"]
[BlackElo "2533"]
[PlyCount "45"]
[EventDate "2025.04.09"]
[EventType "swiss"]
[EventCountry "ISL"]
[SourceTitle "playchess.com"]
[Source "ChessBase"]
[SourceQuality "1"]
[TimeControl "40/5400+30:1800+30"]

{[%evp 15,45,44,29,14,38,31,37,32,47,-42,-42,-43,0,0,0,0,0,0,0,0,0,0,0,0,0,0,0,0,0,0,0,0]} 1. e4 {[%emt 0:01:05]} d6 {[%emt 0:00:05]} 2. d4 {[%emt 0:00:10]} Nf6 {[%emt 0:00:02]} 3. Nc3 {[%emt 0:00:19]} e5 {[%emt 0:00:04]} 4. dxe5 {[%emt 0:00:21]} dxe5 {[%emt 0:00:04]} 5. Qxd8+ {[%emt 0:00:08]} Kxd8 {[%emt 0:00:02]} 6. Bg5 {[%emt 0:00:18]} Nbd7 {[%emt 0:00:31]} 7. O-O-O {[%emt 0:07:29]} c6 {[%emt 0:00:26]} 8. Bc4 {[%emt 0:01:24]} Ke8 {[%emt 0:00:07]} 9. Nf3 {[%emt 0:01:11] B07: Pirc Defence: Miscellaneous Systems.} Bb4 {[%emt 0:06:37]} 10. a3 $146 {[%emt 0:06:28]} (10. Bh4 Ba5 11. Ng5 Rf8 12. f4 Bc7 13. Nf3 Ng4 14. Rhe1 exf4 15. e5 Ne3 16. e6 fxe6 17. Bxe6 Ne5 18. Bb3 Nxf3 19. gxf3 {½-½ Gaponenko,I (2343)-Stojanovski,D (2407) EU-ch Rapid Skopje 2024 (5)}) 10... Ba5 {[%emt 0:11:32]} 11. h3 {[%emt 0:05:22] White is slightly better.} b5 {[%emt 0:05:55] [#]} 12. Nxb5 {[%emt 0:20:22]} cxb5 $15 {[%emt 0:00:30]} 13. Bxb5 {[%emt 0:00:03]} Bc7 {[%emt 0:08:16]} (13... Nxe4 $2 {perishes.} 14. Be3 Rb8 15. Bc6 $18) (13... Rb8 {seems wilder.} 14. Ba4 Ke7 15. Bxd7 Bxd7 16. Nxe5 Bb5) 14. Bxf6 $1 {[%emt 0:18:33] The position is equal.} gxf6 {[%emt 0:00:04]} 15. Nh4 $1 {[%emt 0:00:33]} Rb8 {[%emt 0:09:40][%cal Ba8b8,Bb8b6,Bb6a6,Ba6a5][%mdl 32]} 16. Ba4 {[%emt 0:00:23]} Rb6 $1 {[%emt 0:02:07]} 17. Nf5 {[%emt 0:01:01]} Ra6 {[%emt 0:00:05]} 18. Bb5 {[%emt 0:03:06][%cal Od1d7]} Ra5 {[%emt 0:01:54]} 19. Bc6 {[%emt 0:01:57]} Ra6 {[%emt 0:04:38]} (19... Rc5 $5 20. Ba4 $8 Ra5 $11) 20. Bb5 {[%emt 0:01:51][%cal Od1d7]} Ra5 {[%emt 0:00:03]} 21. Bc6 {[%emt 0:00:09]} Ra6 {[%emt 0:03:38]} (21... Rc5 $5 22. Ba4 $8 Ra5 23. Bc6 $11) 22. Bb5 {[%emt 0:01:28][%cal Od1d7] and Rxd7! should not be overlooked} Ra5 {[%emt 0:00:01]} 23. Bc6 {[%emt 0:00:36] Weighted Error Value: White=0.10 (very precise) /Black=0.06 (flawless)   Mistake:       	White=1     	---        Inaccurate:     	---       	Black=1      OK:         	White=8     	Black=6      Best:        	---       	Black=1      Strong:       	White=2     	Black=1} 1/2-1/2

[Event "Reykjavik Open 2025"]
[Site "Reykjavik"]
[Date "2025.04.10"]
[Round "2.15"]
[White "Papp, Gabor"]
[Black "Nissinen, Niilo Man"]
[Result "1/2-1/2"]
[Annotator "TA"]
[ECO "B31"]
[WhiteElo "2502"]
[BlackElo "2268"]
[PlyCount "91"]
[EventDate "2025.04.09"]
[EventType "swiss"]
[EventCountry "ISL"]
[SourceTitle "playchess.com"]
[Source "ChessBase"]
[SourceQuality "1"]
[TimeControl "40/5400+30:1800+30"]

{[%evp 12,91,23,18,27,20,33,15,20,20,20,20,34,23,51,45,37,20,58,54,72,50,55,37,44,24,45,47,72,33,89,62,108,100,121,70,74,43,117,51,67,35,70,60,33,18,38,8,11,14,13,12,12,0,0,0,-20,0,14,0,0,0,0,0,0,0,0,0,0,0,0,0,0,0,0,0,0,0,0,0,0,0]} 1. e4 {[%emt 0:00:04]} c5 {[%emt 0:03:24]} 2. Nf3 {[%emt 0:00:05]} Nc6 {[%emt 0:00:12]} 3. Bb5 {[%emt 0:00:10]} g6 {[%emt 0:00:41]} 4. O-O {[%emt 0:00:24]} Bg7 {[%emt 0:00:18]} 5. Bxc6 {[%emt 0:02:05]} dxc6 {[%emt 0:03:52]} 6. d3 {[%emt 0:00:25]} Nf6 {[%emt 0:00:57]} 7. Re1 {[%emt 0:00:36]} O-O {[%emt 0:00:32] B31: Sicilian: 2...Nc6 3 Bb5 g6.} 8. a4 {[%emt 0:00:34]} a5 {[%emt 0:03:37]} 9. Nbd2 {[%emt 0:01:22]} Ne8 {[%emt 0:12:22]} 10. e5 {[%emt 0:00:31]} Nc7 {[%emt 0:02:08]} 11. b3 {[%emt 0:00:35]} Bf5 $146 {[%emt 0:05:39]} (11... b6 12. Bb2 Ne6 13. Nc4 h6 14. Bc3 Ra7 15. Qe2 Qc7 16. Qe4 b5 17. Ncd2 Qb6 {½-½ Booij,R (2325)-Reichgeld,M (2216) W-ch WS/M/785 email 2020}) 12. Bb2 {[%emt 0:12:50]} Qd7 {[%emt 0:04:53]} 13. Nc4 {[%emt 0:12:54]} Nd5 {[%emt 0:01:35] Repels Nb6} 14. Ng5 {[%emt 0:04:56][%cal Oe5e6]} (14. Ne3 {simplifies} Nxe3 15. Rxe3 Bh6 16. Re1) 14... Be6 {[%emt 0:03:53]} 15. Qf3 {[%emt 0:04:57]} h6 {[%emt 0:04:10]} 16. Nxe6 {[%emt 0:07:17]} Qxe6 {[%emt 0:00:16]} 17. Re2 {[%emt 0:06:59]} Rfd8 {[%emt 0:03:41]} 18. h4 {[%emt 0:03:07][%cal Bh2h4,Bh4h5][%mdl 32]} b6 {[%emt 0:09:09]} 19. h5 {[%emt 0:02:06]} g5 {[%emt 0:07:15]} 20. g3 {[%emt 0:03:29] White is more active.} Ra7 {[%emt 0:06:22]} (20... b5 $14) 21. Kh2 {[%emt 0:00:33]} Rad7 {[%emt 0:06:09]} (21... b5 $14 {feels stronger.}) 22. Qe4 {[%emt 0:03:05][%csl Oc4] Strong Square White (c4)} Kh8 {[%emt 0:01:52]} 23. Rg1 {[%emt 0:02:25]} (23. Ne3 $16) 23... b5 $14 {[%emt 0:03:12]} 24. Nd2 {[%emt 0:00:48]} (24. Nxa5 Ra7 25. Nxc6 Qxc6 26. axb5 Qe8 $17 (26... Qxb5 27. c4 $15)) 24... Nb6 {[%emt 0:04:09] [#]} ({Better is} 24... Nb4 $14) 25. axb5 {[%emt 0:01:32]} ({White should try} 25. f4 $1 $16) 25... cxb5 {[%emt 0:00:12][%cal Oc5c4]} 26. f4 $1 {[%emt 0:00:04]} c4 {[%emt 0:03:16][%cal Rc4d3]} 27. f5 {[%emt 0:05:08]} Qd5 {[%emt 0:00:09]} 28. dxc4 {[%emt 0:08:22]} bxc4 {[%emt 0:01:32]} 29. Qxd5 {[%emt 0:07:27]} Rxd5 {[%emt 0:00:07] The position is equal.} 30. Nxc4 {[%emt 0:00:03]} Nxc4 {[%emt 0:00:15]} 31. bxc4 {[%emt 0:00:03]} Rc5 {[%emt 0:04:22]} 32. f6 {[%emt 0:07:40]} exf6 {[%emt 0:00:20]} 33. exf6 {[%emt 0:00:04]} Bf8 {[%emt 0:00:06]} 34. Re4 {[%emt 0:00:03]} Rdc8 {[%emt 0:01:30]} 35. Rd1 {[%emt 0:01:32]} Rxc4 {[%emt 0:00:51]} 36. Rxc4 {[%emt 0:00:05]} Rxc4 $11 {[%emt 0:00:04][%mdl 4096] Endgame KRB-KRB} 37. Rd8 {[%emt 0:00:37]} Rxc2+ {[%emt 0:00:11]} 38. Kh3 {[%emt 0:01:57]} Rxb2 {[%emt 0:00:08]} 39. Rxf8+ {[%emt 0:00:04] KR-KR. Black is a pawn up.} Kh7 {[%emt 0:00:05]} 40. Rxf7+ {[%emt 0:00:03]} Kg8 {[%emt 0:01:20]} 41. Rg7+ {[%emt 0:30:31]} Kh8 {[%emt 0:09:55]} 42. Rg6 $1 {[%emt 0:00:00]} Kh7 {[%emt 0:00:14]} 43. Rg7+ {[%emt 0:00:00]} Kh8 {[%emt 0:00:07]} 44. Ra7 {[%emt 0:00:00] [#] Intending Ra8+ and mate.} Rf2 {[%emt 0:00:27]} 45. Rxa5 {[%emt 0:00:00]} Rxf6 {[%emt 0:00:07]} 46. Kg4 {[%emt 0:00:00] Weighted Error Value: White=0.13 (very precise) /Black=0.15 (very precise)   Mistake:       	White=2     	Black=3      Inaccurate:     	White=5     	Black=3      OK:         	White=9     	Black=15     Best:        	---       	Black=1      Strong:       	White=2     	---} 1/2-1/2

[Event "Reykjavik Open 2025"]
[Site "Reykjavik"]
[Date "2025.04.10"]
[Round "2.16"]
[White "Xu, Yuanyuan"]
[Black "Zierk, Steven"]
[Result "1/2-1/2"]
[Annotator "TA"]
[ECO "E46"]
[WhiteElo "2288"]
[BlackElo "2501"]
[PlyCount "58"]
[EventDate "2025.04.09"]
[EventType "swiss"]
[EventCountry "ISL"]
[SourceTitle "playchess.com"]
[Source "ChessBase"]
[SourceQuality "1"]
[TimeControl "40/5400+30:1800+30"]

{[%evp 9,58,0,3,7,0,-2,4,0,-4,-7,0,0,0,0,8,0,0,0,0,2,11,-15,-21,-62,-79,-68,-16,-12,-15,-9,0,0,18,22,96,91,92,92,101,80,101,97,119,110,134,104,101,96,90,97,85]} 1. d4 {[%emt 0:03:02]} Nf6 {[%emt 0:00:08]} 2. c4 {[%emt 0:00:37]} e6 {[%emt 0:00:08]} 3. Nc3 {[%emt 0:00:08]} Bb4 {[%emt 0:00:08]} 4. e3 {[%emt 0:08:44][%cal Be2e3,Be3e4,Be4e5][%mdl 32]} O-O {[%emt 0:00:10]} 5. Nge2 {[%emt 0:01:04]} c6 {[%emt 0:00:09]} 6. a3 {[%emt 0:01:43] E46: Nimzo-Indian: Rubinstein: 4 e3 0-0 5 Ne2 without early Bd3.} Ba5 {[%emt 0:00:07]} 7. b4 {[%emt 0:01:34]} Bc7 {[%emt 0:00:11]} 8. e4 {[%emt 0:01:01] The position is equal.} d5 {[%emt 0:00:56]} 9. e5 {[%emt 0:01:19]} Nfd7 $1 {[%emt 0:00:11] 9...Nfd7 is better than 9...Ne8.} 10. Nf4 {[%emt 0:09:29]} a5 {[%emt 0:02:53] [#]} 11. Rb1 {[%emt 0:07:05]} axb4 {[%emt 0:01:50]} 12. axb4 {[%emt 0:00:03]} c5 {[%emt 0:07:04]} 13. bxc5 {[%emt 0:06:41]} Ba5 {[%emt 0:00:19]} 14. Bd2 {[%emt 0:01:51]} dxc4 {[%emt 0:00:57]} 15. Nb5 {[%emt 0:11:43]} Nc6 {[%emt 0:03:52][%cal Oc6d4] And now ...Nxd4! would win.} 16. Bxa5 $146 {[%emt 0:09:25]} (16. Be2 Nxd4 17. Nxd4 c3 18. O-O cxd2 19. Nfxe6 fxe6 20. Nxe6 Qe7 21. Nxf8 Kxf8 22. Qc2 Qxe5 {0-1 Hak,D (2281)-Audi,A (2381) Ceske Budejovice IM 2024 (2)}) 16... Qxa5+ {[%emt 0:01:19]} 17. Qd2 {[%emt 0:00:10]} Rd8 {[%emt 0:12:08]} ({Black should try} 17... Qxd2+ $15 18. Kxd2 b6 19. Bxc4 bxc5 20. dxc5 Ncxe5) 18. Qxa5 $1 $11 {[%emt 0:01:08]} (18. Bxc4 $2 {perishes.} Qxd2+ 19. Kxd2 Ndxe5 $19) 18... Rxa5 {[%emt 0:00:17]} 19. Bxc4 {[%emt 0:04:30][%cal Bf1c4,Bc4b3,Bb3c2,Bc2d3][%mdl 32]} Ra4 {[%emt 0:17:45]} 20. Bb3 $36 {[%emt 0:08:07][%mdl 2048] White is more active.} Ra5 {[%emt 0:13:58]} 21. Bc2 {[%emt 0:03:39]} Rxb5 {[%emt 0:06:14]} 22. Rxb5 $16 {[%emt 0:00:10]} Nxd4 {[%emt 0:00:12]} 23. Rb2 {[%emt 0:00:31]} Nxe5 {[%emt 0:00:34]} 24. O-O {[%emt 0:01:17]} Nc4 {[%emt 0:02:54] [#]} 25. Ra2 {[%emt 0:02:33]} e5 {[%emt 0:01:01][%cal Be6e5,Be5f4,Bf4f3][%mdl 32]} 26. Bd3 $1 {[%emt 0:01:39]} b5 {[%emt 0:04:22]} 27. cxb6 {[%emt 0:02:39]} Nxb6 {[%emt 0:00:11] White is better.} 28. Rb1 {[%emt 0:01:52]} exf4 {[%emt 0:08:04]} 29. Rxb6 {[%emt 0:00:06]} f3 {[%emt 0:12:48] Weighted Error Value: White=0.05 (flawless) /Black=0.14 (very precise)   Mistake:       	---       	Black=2      Inaccurate:     	White=1     	---        OK:         	White=15    	Black=12     Best:        	White=1     	Black=1      Strong:       	White=2     	---} 1/2-1/2